fUSD/lending_fUSD_20250109
["ID","MTS","AMOUNT","RATE_DAILY","PERIOD"]
[348270421,1736428259429,-514.69,0.00010818,2]
[348270422,1736428259439,-500.0,0.00010818,2]
[348270423,1736428259448,-1109.65,0.00010818,2]
[348270424,1736428259457,-500.0,0.00010818,2]
[348270425,1736428259467,-500.0,0.00010818,2]
[348270426,1736428259478,-967.77,0.00010818,2]
[348270427,1736428259488,-841.11,0.00010818,2]
[348270428,1736428259498,-278.88,0.00010818,2]
[348270429,1736428259507,-500.0,0.00010818,2]
[348270430,1736428259517,-500.0,0.00010818,2]
[348270431,1736428259526,-500.0,0.00010818,2]
[348270432,1736428259536,-829.69,0.00010818,2]
[348270433,1736428259545,-777.57,0.00010818,2]
[348270434,1736428259555,-500.0,0.00010818,2]
[348270435,1736428259565,-500.0,0.00010818,2]
[348270436,1736428259574,-2745.65,0.00010818,2]
[348270437,1736428259584,-500.0,0.00010818,2]
[348270438,1736428259594,-500.0,0.00010819,2]
[348270439,1736428259604,-664.97,0.00010819,2]
[348270440,1736428259613,-449.69,0.00010819,2]
[348270441,1736428259623,-500.0,0.00010819,2]
[348270442,1736428259633,-500.0,0.00010819,2]
[348270443,1736428259643,-533.12,0.00010819,2]
[348270444,1736428259652,-500.0,0.00010819,2]
[348270445,1736428259662,-500.0,0.00010819,2]
[348270446,1736428259671,-500.0,0.00010819,2]
[348270447,1736428259681,-500.0,0.00010819,2]
[348270448,1736428259691,-620.22,0.00010819,2]
[348270449,1736428259700,-500.0,0.00010819,2]
[348270450,1736428259711,-500.0,0.00010819,2]
[348270451,1736428259721,-500.0,0.00010819,2]
[348270452,1736428259731,-500.0,0.00010819,2]
[348270453,1736428259740,-500.0,0.00010819,2]
[348270454,1736428259750,-500.0,0.00010819,2]
[348270455,1736428259760,-347.46,0.00010819,2]
[348270456,1736428259769,-500.0,0.00010819,2]
[348270457,1736428259778,-500.0,0.00010819,2]
[348270458,1736428259788,-759.66,0.00010819,2]
[348270459,1736428259797,-759.66,0.00010819,2]
[348270460,1736428259807,-540.95718,0.00010819,2]
[348270461,1736428259816,-500.0,0.00010819,2]
[348270462,1736428259825,-500.0,0.00010819,2]
[348270463,1736428259834,-500.0,0.00010819,2]
[348270464,1736428259844,-675.372354,0.00010819,2]
[348270465,1736428259853,-456.74,0.00010819,2]
[348270466,1736428259862,-382.33,0.00010819,2]
[348270467,1736428259872,-309.72,0.00010819,2]
[348270468,1736428259881,-500.0,0.00010819,2]
[348270469,1736428259891,-196.24,0.00010819,2]
[348270470,1736428259900,-500.0,0.00010819,2]
[348270471,1736428259909,-151.35,0.00010819,2]
[348270472,1736428259918,-515.58,0.00010819,2]
[348270473,1736428259928,-355.02,0.00010819,2]
[348270474,1736428259936,-263.8,0.00010819,2]
[348270475,1736428259946,-500.0,0.00010819,2]
[348270476,1736428259955,-397.24,0.00010819,2]
[348270477,1736428259964,-411.81,0.00010819,2]
[348270478,1736428259974,-500.0,0.00010819,2]
[348270479,1736428259983,-1214.85,0.00010819,2]
[348270480,1736428259992,-500.0,0.00010819,2]
[348270481,1736428260002,-500.0,0.00010819,2]
[348270482,1736428260012,-226.49,0.00010819,2]
[348270483,1736428260022,-444.51,0.00010819,2]
[348270484,1736428260034,-614.38,0.00010819,2]
[348270485,1736428260045,-241.57,0.00010819,2]
[348270486,1736428260055,-201.32,0.00010819,2]
[348270487,1736428260065,-197.54,0.00010819,2]
[348270488,1736428260075,-361.87,0.00010819,2]
[348270489,1736428260084,-215.5,0.00010819,2]
[348270490,1736428260094,-434.58,0.00010819,2]
[348270491,1736428260106,-500.0,0.00010819,2]
[348270492,1736428260115,-384.95,0.00010819,2]
[348270493,1736428260125,-158.53,0.00010819,2]
[348270494,1736428260135,-500.0,0.00010819,2]
[348270495,1736428260144,-507.98,0.00010819,2]
[348270496,1736428260154,-336.12,0.00010819,2]
[348270497,1736428260164,-539.87,0.00010819,2]
[348270498,1736428260174,-165.74,0.00010819,2]
[348270499,1736428260183,-248.2,0.00010819,2]
[348270500,1736428260193,-494.85,0.00010819,2]
[348270501,1736428260203,-927.5,0.00010819,2]
[348270502,1736428260213,-500.0,0.00010819,2]
[348270503,1736428260223,-636.73,0.0001082,2]
[348270504,1736428260236,-630.69,0.0001082,2]
[348270505,1736428260246,-1241.77,0.0001082,2]
[348270506,1736428260257,-554.43,0.0001082,2]
[348270507,1736428260267,-1491.3,0.0001082,2]
[348270508,1736428260278,-170.95,0.0001082,2]
[348270509,1736428260288,-500.0,0.0001082,2]
[348270510,1736428260298,-500.0,0.0001082,2]
[348270511,1736428260311,-163.49,0.0001082,2]
[348270512,1736428260321,-219.79,0.0001082,2]
[348270513,1736428260331,-651.26,0.0001082,2]
[348270514,1736428260339,-318.52,0.0001082,2]
[348270515,1736428260354,-621.95,0.0001082,2]
[348270516,1736428260364,-500.0,0.0001082,2]
[348270517,1736428260373,-500.0,0.0001082,2]
[348270518,1736428260382,-500.0,0.0001082,2]
[348270519,1736428260392,-500.0,0.0001082,2]
[348270520,1736428260402,-1611.11,0.0001082,2]
[348270521,1736428260411,-602.08,0.0001082,2]
[348270522,1736428260421,-557.61,0.0001082,2]
[348270523,1736428260430,-500.0,0.0001082,2]
[348270524,1736428260440,-500.0,0.0001082,2]
[348270525,1736428260450,-500.0,0.0001082,2]
[348270526,1736428260459,-500.0,0.0001082,2]
[348270527,1736428260468,-500.0,0.0001082,2]
[348270528,1736428260478,-500.0,0.0001082,2]
[348270529,1736428260487,-500.0,0.00010821,2]
[348270530,1736428260497,-500.0,0.00010821,2]
[348270531,1736428260506,-500.0,0.00010821,2]
[348270532,1736428260515,-500.0,0.00010821,2]
[348270533,1736428260525,-560.32,0.00010821,2]
[348270534,1736428260534,-500.0,0.00010821,2]
[348270535,1736428260543,-500.0,0.00010821,2]
[348270536,1736428260553,-150.0,0.00010959,2]
[348270537,1736428260562,-500.0,0.00010986,2]
[348270538,1736428260571,-1500.0,0.00011,2]
[348270539,1736428260580,-2212.20477548,0.00011,3]
[348270540,1736428260590,-150.0,0.00011047,2]
[348270541,1736428260601,-150.0,0.00011047,2]
[348270542,1736428260611,-172.86,0.00011083,2]
[348270543,1736428260620,-500.0,0.00011092,2]
[348270544,1736428260630,-500.0,0.00011092,2]
[348270545,1736428260639,-676.46,0.00011092,2]
[348270546,1736428260649,-1305.89,0.00011092,2]
[348270547,1736428260659,-500.0,0.00011092,2]
[348270548,1736428260668,-500.0,0.00011092,2]
[348270549,1736428260678,-500.0,0.00011092,2]
[348270550,1736428260687,-637.62,0.00011092,2]
[348270551,1736428260697,-500.0,0.00011092,2]
[348270552,1736428260707,-500.0,0.00011092,2]
[348270553,1736428260716,-500.0,0.00011092,2]
[348270554,1736428260726,-712.63,0.00011092,2]
[348270555,1736428260735,-514.69,0.00011092,2]
[348270556,1736428260744,-500.0,0.00011092,2]
[348270557,1736428260754,-1109.65,0.00011092,2]
[348270558,1736428260763,-500.0,0.00011092,2]
[348270559,1736428260773,-500.0,0.00011092,2]
[348270560,1736428260783,-967.77,0.00011092,2]
[348270561,1736428260793,-841.11,0.00011092,2]
[348270562,1736428260803,-500.0,0.00011092,2]
[348270563,1736428260813,-242.22,0.00011092,2]
[348270564,1736428260823,-500.0,0.00011092,2]
[348270565,1736428260832,-829.69,0.00011092,2]
[348270566,1736428260842,-777.57,0.00011092,2]
[348270567,1736428260856,-500.0,0.00011092,2]
[348270568,1736428260865,-500.0,0.00011092,2]
[348270569,1736428260875,-2745.65,0.00011092,2]
[348270570,1736428260885,-500.0,0.00011092,2]
[348270571,1736428260895,-500.0,0.00011093,2]
[348270572,1736428260906,-664.97,0.00011093,2]
[348270573,1736428260916,-500.0,0.00011093,2]
[348270574,1736428260926,-500.0,0.00011093,2]
[348270575,1736428260937,-358.28,0.00011093,2]
[348270576,1736428260948,-500.0,0.00011093,2]
[348270577,1736428260959,-221.12,0.00011093,2]
[348270578,1736428260968,-447.28,0.00011093,2]
[348270579,1736428260978,-419.99,0.00011093,2]
[348270580,1736428260988,-500.0,0.00011093,2]
[348270581,1736428260998,-416.47,0.00011093,2]
[348270582,1736428261007,-500.0,0.00011093,2]
[348270583,1736428261017,-500.0,0.00011093,2]
[348270584,1736428261026,-500.0,0.00011093,2]
[348270585,1736428261035,-500.0,0.00011093,2]
[348270586,1736428261044,-759.66,0.00011093,2]
[348270587,1736428261053,-759.66,0.00011093,2]
[348270588,1736428261063,-265.55,0.00011093,2]
[348270589,1736428261072,-540.95718,0.00011093,2]
[348270590,1736428261081,-165.63,0.00011093,2]
[348270591,1736428261091,-500.0,0.00011093,2]
[348270592,1736428261105,-675.372354,0.00011093,2]
[348270593,1736428261115,-157.901047,0.00011093,2]
[348270594,1736428261125,-156.080894,0.00011093,2]
[348270595,1736428261135,-303.13,0.00011093,2]
[348270596,1736428261145,-317.94,0.00011093,2]
[348270597,1736428261155,-426.55,0.00011093,2]
[348270598,1736428261166,-431.56,0.00011093,2]
[348270599,1736428261175,-1214.85,0.00011093,2]
[348270600,1736428261185,-324.17,0.00011093,2]
[348270601,1736428261195,-198.66,0.00011093,2]
[348270602,1736428261205,-296.71417755,0.00011093,2]
[348270603,1736428261214,-500.0,0.00011093,2]
[348270604,1736428261224,-507.98,0.00011093,2]
[348270605,1736428261237,-539.87,0.00011093,2]
[348270606,1736428261247,-927.5,0.00011093,2]
[348270607,1736428261257,-500.0,0.00011093,2]
[348270608,1736428261266,-636.73,0.00011094,2]
[348270609,1736428261277,-630.69,0.00011094,2]
[348270610,1736428261287,-1241.77,0.00011094,2]
[348270611,1736428261298,-554.43,0.00011094,2]
[348270612,1736428261309,-1491.3,0.00011094,2]
[348270613,1736428261364,-500.0,0.00011094,2]
[348270614,1736428261375,-500.0,0.00011094,2]
[348270615,1736428261384,-651.26,0.00011094,2]
[348270616,1736428261394,-500.0,0.00011094,2]
[348270617,1736428261404,-602.19,0.00011094,2]
[348270618,1736428261413,-500.0,0.00011094,2]
[348270619,1736428261423,-500.0,0.00011094,2]
[348270620,1736428261432,-602.08,0.00011094,2]
[348270621,1736428261441,-500.0,0.00011094,2]
[348270622,1736428261451,-557.61,0.00011094,2]
[348270623,1736428261461,-500.0,0.00011094,2]
[348270624,1736428261470,-500.0,0.00011094,2]
[348270625,1736428261481,-500.0,0.00011094,2]
[348270626,1736428261491,-500.0,0.00011094,2]
[348270627,1736428261500,-500.0,0.00011094,2]
[348270628,1736428261509,-530.63,0.00011094,2]
[348270629,1736428261519,-500.0,0.00011094,2]
[348270630,1736428261529,-500.0,0.00011094,2]
[348270631,1736428261539,-3119.69,0.00011094,2]
[348270632,1736428261548,-662.06,0.00011094,2]
[348270633,1736428261558,-500.0,0.00011094,2]
[348270634,1736428261568,-500.0,0.00011094,2]
[348270635,1736428261577,-500.0,0.00011094,2]
[348270636,1736428261587,-919.01,0.00011094,2]
[348270637,1736428261597,-500.0,0.00011094,2]
[348270638,1736428261607,-500.0,0.00011095,2]
[348270639,1736428261617,-500.0,0.00011095,2]
[348270640,1736428261626,-500.0,0.00011095,2]
[348270641,1736428261636,-500.0,0.00011095,2]
[348270642,1736428261646,-500.0,0.00011095,2]
[348270643,1736428261655,-500.0,0.00011095,2]
[348270644,1736428261664,-1173.0,0.00011109,2]
[348270645,1736428261674,-3895.0,0.00011109,2]
[348270646,1736428261684,-150.0,0.00011109,2]
[348270647,1736428261694,-6538.871,0.00011109,2]
[348270648,1736428261703,-647.34,0.00011126,2]
[348270649,1736428261713,-150.0,0.00011183,2]
[348270650,1736428261722,-229.30036231,0.000112,2]
[348270651,1736428261732,-500.0,0.00011252,2]
[348270652,1736428261742,-150.0,0.00011319,2]
[348270653,1736428261752,-500.0,0.00011366,2]
[348270654,1736428261761,-500.0,0.00011366,2]
[348270655,1736428261771,-676.46,0.00011366,2]
[348270656,1736428261781,-1305.89,0.00011366,2]
[348270657,1736428261790,-500.0,0.00011366,2]
[348270658,1736428261800,-500.0,0.00011366,2]
[348270659,1736428261810,-500.0,0.00011366,2]
[348270660,1736428261819,-637.62,0.00011366,2]
[348270661,1736428261828,-500.0,0.00011366,2]
[348270662,1736428261837,-288.48,0.00011366,2]
[348270663,1736428261847,-500.0,0.00011366,2]
[348270664,1736428261857,-712.63,0.00011366,2]
[348270665,1736428261866,-514.69,0.00011366,2]
[348270666,1736428261875,-500.0,0.00011366,2]
[348270667,1736428261885,-1109.65,0.00011366,2]
[348270668,1736428261895,-500.0,0.00011366,2]
[348270669,1736428261904,-500.0,0.00011366,2]
[348270670,1736428261914,-967.77,0.00011366,2]
[348270671,1736428261923,-841.11,0.00011366,2]
[348270672,1736428261932,-500.0,0.00011366,2]
[348270673,1736428261941,-500.0,0.00011366,2]
[348270674,1736428261951,-829.69,0.00011366,2]
[348270675,1736428261960,-777.57,0.00011366,2]
[348270676,1736428261970,-541.81,0.00011366,2]
[348270677,1736428261980,-2745.65,0.00011366,2]
[348270678,1736428261989,-500.0,0.00011366,2]
[348270679,1736428261998,-555.52,0.00011366,2]
[348270680,1736428262008,-309.49,0.00011367,2]
[348270681,1736428262017,-500.0,0.00011367,2]
[348270682,1736428262027,-533.34,0.00011367,2]
[348270683,1736428262036,-500.0,0.00011367,2]
[348270684,1736428262046,-500.0,0.00011367,2]
[348270685,1736428262055,-500.0,0.00011367,2]
[348270686,1736428262064,-241.5,0.00011367,2]
[348270687,1736428262074,-259.88,0.00011367,2]
[348270688,1736428262083,-313.32,0.00011367,2]
[348270689,1736428262093,-759.66,0.00011367,2]
[348270690,1736428262104,-759.66,0.00011367,2]
[348270691,1736428262113,-540.95718,0.00011367,2]
[348270692,1736428262123,-500.0,0.00011367,2]
[348270693,1736428262132,-675.372354,0.00011367,2]
[348270694,1736428262141,-1214.85,0.00011367,2]
[348270695,1736428262150,-500.0,0.00011367,2]
[348270696,1736428262160,-507.98,0.00011367,2]
[348270697,1736428262170,-539.87,0.00011367,2]
[348270698,1736428262179,-927.5,0.00011367,2]
[348270699,1736428262191,-500.0,0.00011367,2]
[348270700,1736428262202,-636.73,0.00011368,2]
[348270701,1736428262211,-630.69,0.00011368,2]
[348270702,1736428262220,-1241.77,0.00011368,2]
[348270703,1736428262232,-554.43,0.00011368,2]
[348270704,1736428262245,-1491.3,0.00011368,2]
[348270705,1736428262255,-626.9,0.00011368,2]
[348270706,1736428262265,-500.0,0.00011368,2]
[348270707,1736428262277,-651.26,0.00011368,2]
[348270708,1736428262287,-500.0,0.00011368,2]
[348270709,1736428262297,-500.0,0.00011368,2]
[348270710,1736428262307,-500.0,0.00011368,2]
[348270711,1736428262316,-602.08,0.00011368,2]
[348270712,1736428262326,-620.19,0.00011368,2]
[348270713,1736428262336,-557.61,0.00011368,2]
[348270714,1736428262348,-500.0,0.00011368,2]
[348270715,1736428262358,-500.0,0.00011368,2]
[348270716,1736428262368,-500.0,0.00011368,2]
[348270717,1736428262377,-500.0,0.00011368,2]
[348270718,1736428262387,-530.63,0.00011368,2]
[348270719,1736428262396,-500.0,0.00011368,2]
[348270720,1736428262405,-500.0,0.00011368,2]
[348270721,1736428262414,-3119.69,0.00011368,2]
[348270722,1736428262423,-662.06,0.00011368,2]
[348270723,1736428262433,-500.0,0.00011368,2]
[348270724,1736428262442,-500.0,0.00011368,2]
[348270725,1736428262451,-500.0,0.00011368,2]
[348270726,1736428262461,-919.01,0.00011368,2]
[348270727,1736428262471,-221.9359049,0.00011368,2]
[348270728,1736428262481,-500.0,0.00011369,2]
[348270729,1736428262490,-500.0,0.00011369,2]
[348270730,1736428262500,-500.0,0.00011369,2]
[348270731,1736428262509,-448.98,0.00011369,2]
[348270732,1736428262519,-500.0,0.00011369,2]
[348270733,1736428262528,-500.0,0.00011369,2]
[348270734,1736428262538,-522.18,0.00011399,2]
[348270735,1736428262548,-150.0,0.00011456,2]
[348270736,1736428262557,-2014.0,0.0001146,2]
[348270737,1736428262567,-1267.0,0.0001146,2]
[348270738,1736428262576,-634.0,0.0001146,2]
[348270739,1736428262585,-150.0,0.0001146,2]
[348270740,1736428262595,-566.0,0.0001146,2]
[348270741,1736428262604,-1860.0,0.0001146,2]
[348270742,1736428262614,-1258.0,0.0001146,2]
[348270743,1736428262623,-3776.0,0.0001146,2]
[348270744,1736428262633,-918.0,0.0001146,2]
[348270745,1736428262643,-819.0,0.0001146,2]
[348270746,1736428262652,-3468.0,0.0001146,2]
[348270747,1736428262662,-537.0,0.0001146,2]
[348270748,1736428262671,-150.0,0.00011592,2]
[348270749,1736428262680,-437.08,0.00011601,2]
[348270750,1736428262690,-1955.14,0.00011601,2]
[348270751,1736428262699,-500.0,0.0001164,2]
[348270752,1736428262709,-500.0,0.0001164,2]
[348270753,1736428262719,-676.46,0.0001164,2]
[348270754,1736428262728,-1305.89,0.0001164,2]
[348270755,1736428262738,-371.48,0.0001164,2]
[348270756,1736428262749,-500.0,0.0001164,2]
[348270757,1736428262759,-500.0,0.0001164,2]
[348270758,1736428262768,-637.62,0.0001164,2]
[348270759,1736428262777,-500.0,0.0001164,2]
[348270760,1736428262787,-500.0,0.0001164,2]
[348270761,1736428262796,-712.63,0.0001164,2]
[348270762,1736428262805,-514.69,0.0001164,2]
[348270763,1736428262814,-491.13,0.0001164,2]
[348270764,1736428262824,-1109.65,0.0001164,2]
[348270765,1736428262833,-500.0,0.0001164,2]
[348270766,1736428262844,-532.51,0.0001164,2]
[348270767,1736428262854,-967.77,0.0001164,2]
[348270768,1736428262864,-841.11,0.0001164,2]
[348270769,1736428262873,-500.0,0.0001164,2]
[348270770,1736428262883,-500.0,0.0001164,2]
[348270771,1736428262892,-829.69,0.0001164,2]
[348270772,1736428262901,-777.57,0.0001164,2]
[348270773,1736428262911,-2745.65,0.0001164,2]
[348270774,1736428262919,-500.0,0.0001164,2]
[348270775,1736428262929,-635.41,0.00011641,2]
[348270776,1736428262939,-500.0,0.00011641,2]
[348270777,1736428262948,-500.0,0.00011641,2]
[348270778,1736428262957,-391.56,0.00011641,2]
[348270779,1736428262967,-759.66,0.00011641,2]
[348270780,1736428262976,-759.66,0.00011641,2]
[348270781,1736428262986,-540.95718,0.00011641,2]
[348270782,1736428262995,-224.08,0.00011641,2]
[348270783,1736428263006,-675.372354,0.00011641,2]
[348270784,1736428263016,-1214.85,0.00011641,2]
[348270785,1736428263025,-500.0,0.00011641,2]
[348270786,1736428263036,-507.98,0.00011641,2]
[348270787,1736428263046,-539.87,0.00011641,2]
[348270788,1736428263056,-927.5,0.00011641,2]
[348270789,1736428263067,-500.0,0.00011641,2]
[348270790,1736428263078,-636.73,0.00011642,2]
[348270791,1736428263088,-630.69,0.00011642,2]
[348270792,1736428263099,-1241.77,0.00011642,2]
[348270793,1736428263109,-554.43,0.00011642,2]
[348270794,1736428263118,-1491.3,0.00011642,2]
[348270795,1736428263128,-500.0,0.00011642,2]
[348270796,1736428263138,-651.26,0.00011642,2]
[348270797,1736428263148,-500.0,0.00011642,2]
[348270798,1736428263158,-690.86,0.00011642,2]
[348270799,1736428263168,-500.0,0.00011642,2]
[348270800,1736428263177,-500.0,0.00011642,2]
[348270801,1736428263188,-602.08,0.00011642,2]
[348270802,1736428263209,-557.61,0.00011642,2]
[348270803,1736428263219,-500.0,0.00011642,2]
[348270804,1736428263229,-292.16,0.00011642,2]
[348270805,1736428263243,-500.0,0.00011642,2]
[348270806,1736428263253,-530.63,0.00011642,2]
[348270807,1736428263264,-500.0,0.00011642,2]
[348270808,1736428263275,-500.0,0.00011642,2]
[348270809,1736428263285,-3119.69,0.00011642,2]
[348270810,1736428263295,-662.06,0.00011642,2]
[348270811,1736428263305,-500.0,0.00011642,2]
[348270812,1736428263318,-500.0,0.00011642,2]
[348270813,1736428263328,-500.0,0.00011642,2]
[348270814,1736428263339,-919.01,0.00011642,2]
[348270815,1736428263351,-242.22491914,0.00011643,2]
[348270816,1736428263361,-500.0,0.00011643,2]
[348270817,1736428263371,-544.4,0.00011643,2]
[348270818,1736428263382,-500.0,0.00011643,2]
[348270819,1736428263392,-500.0,0.00011643,2]
[348270820,1736428263402,-156.761,0.0001168,2]
[348270821,1736428263412,-150.0,0.00011728,2]
[348270822,1736428263421,-150.0,0.00011865,2]
[348270823,1736428263431,-483.01,0.00011914,2]
[348270824,1736428263441,-500.0,0.00011914,2]
[348270825,1736428263450,-676.46,0.00011914,2]
[348270826,1736428263461,-1305.89,0.00011914,2]
[348270827,1736428263471,-500.0,0.00011914,2]
[348270828,1736428263482,-500.0,0.00011914,2]
[348270829,1736428263492,-637.62,0.00011914,2]
[348270830,1736428263501,-500.0,0.00011914,2]
[348270831,1736428263511,-500.0,0.00011914,2]
[348270832,1736428263522,-712.63,0.00011914,2]
[348270833,1736428263531,-514.69,0.00011914,2]
[348270834,1736428263541,-1109.65,0.00011914,2]
[348270835,1736428263551,-500.0,0.00011914,2]
[348270836,1736428263561,-967.77,0.00011914,2]
[348270837,1736428263570,-841.11,0.00011914,2]
[348270838,1736428263580,-237.57,0.00011914,2]
[348270839,1736428263590,-500.0,0.00011914,2]
[348270840,1736428263602,-829.69,0.00011914,2]
[348270841,1736428263612,-777.57,0.00011914,2]
[348270842,1736428263622,-2745.65,0.00011914,2]
[348270843,1736428263633,-586.69,0.00011914,2]
[348270844,1736428263643,-500.0,0.00011915,2]
[348270845,1736428263653,-500.0,0.00011915,2]
[348270846,1736428263663,-759.66,0.00011915,2]
[348270847,1736428263673,-540.95718,0.00011915,2]
[348270848,1736428263684,-675.372354,0.00011915,2]
[348270849,1736428263694,-1214.85,0.00011915,2]
[348270850,1736428263703,-500.0,0.00011915,2]
[348270851,1736428263713,-507.98,0.00011915,2]
[348270852,1736428263723,-539.87,0.00011915,2]
[348270853,1736428263733,-927.5,0.00011915,2]
[348270854,1736428263743,-500.0,0.00011915,2]
[348270855,1736428263752,-636.73,0.00011916,2]
[348270856,1736428263762,-630.69,0.00011916,2]
[348270857,1736428263772,-1241.77,0.00011916,2]
[348270858,1736428263781,-554.43,0.00011916,2]
[348270859,1736428263791,-1491.3,0.00011916,2]
[348270860,1736428263800,-500.0,0.00011916,2]
[348270861,1736428263810,-651.26,0.00011916,2]
[348270862,1736428263819,-500.0,0.00011916,2]
[348270863,1736428263829,-423.73309424,0.00011916,2]
[348270864,1736428263839,-500.0,0.00011916,2]
[348270865,1736428263850,-628.26,0.00011916,2]
[348270866,1736428263860,-602.08,0.00011916,2]
[348270867,1736428263869,-557.61,0.00011916,2]
[348270868,1736428263880,-500.0,0.00011916,2]
[348270869,1736428263889,-242.01,0.00011916,2]
[348270870,1736428263899,-500.0,0.00011916,2]
[348270871,1736428263909,-530.63,0.00011916,2]
[348270872,1736428263919,-500.0,0.00011916,2]
[348270873,1736428263929,-500.0,0.00011916,2]
[348270874,1736428263939,-3119.69,0.00011916,2]
[348270875,1736428263949,-662.06,0.00011916,2]
[348270876,1736428263958,-500.0,0.00011916,2]
[348270877,1736428263968,-500.0,0.00011916,2]
[348270878,1736428263978,-500.0,0.00011916,2]
[348270879,1736428263988,-919.01,0.00011916,2]
[348270880,1736428263998,-500.0,0.00011917,2]
[348270881,1736428264008,-500.0,0.00011917,2]
[348270882,1736428264018,-500.0,0.00011917,2]
[348270883,1736428264028,-2594.72,0.00011947,2]
[348270884,1736428264039,-780.06,0.00012,2]
[348270885,1736428264048,-2404.278,0.00012,2]
[348270886,1736428264058,-150.0,0.00012001,2]
[348270887,1736428264068,-200.0,0.00012055,2]
[348270888,1736428264077,-9999.99,0.00012087,2]
[348270889,1736428264087,-5151.24,0.00012087,2]
[348270890,1736428264097,-150.99,0.00012087,2]
[348270891,1736428264107,-999.99,0.00012087,2]
[348270892,1736428264116,-568.73,0.00012087,2]
[348270893,1736428264126,-500.0,0.00012091,2]
[348270894,1736428264136,-1308.0,0.000121,2]
[348270895,1736428264147,-150.0,0.00012138,2]
[348270896,1736428264156,-152.0,0.00012151,3]
[348270897,1736428264166,-500.0,0.00012185,2]
[348270898,1736428264176,-500.0,0.00012185,2]
[348270899,1736428264186,-500.0,0.00012185,2]
[348270900,1736428264195,-500.0,0.00012185,2]
[348270901,1736428264205,-500.0,0.00012185,2]
[348270902,1736428264215,-500.0,0.00012185,2]
[348270903,1736428264225,-500.0,0.00012185,2]
[348270904,1736428264235,-500.0,0.00012185,2]
[348270905,1736428264245,-500.0,0.00012185,2]
[348270906,1736428264255,-500.0,0.00012185,2]
[348270907,1736428264264,-500.0,0.00012185,2]
[348270908,1736428264275,-500.0,0.00012185,2]
[348270909,1736428264284,-500.0,0.00012185,2]
[348270910,1736428264294,-500.0,0.00012185,2]
[348270911,1736428264304,-500.0,0.00012185,2]
[348270912,1736428264315,-500.0,0.00012185,2]
[348270913,1736428264325,-500.0,0.00012185,2]
[348270914,1736428264335,-500.0,0.00012185,2]
[348270915,1736428264345,-500.0,0.00012185,2]
[348270916,1736428264355,-500.0,0.00012185,2]
[348270917,1736428264365,-500.0,0.00012185,2]
[348270918,1736428264375,-500.0,0.00012185,2]
[348270919,1736428264385,-500.0,0.00012185,2]
[348270920,1736428264395,-500.0,0.00012185,2]